fUSD/lending_fUSD_20260405
["ID","MTS","AMOUNT","RATE_DAILY","PERIOD"]
[419840214,1775411440482,-150.0,0.00015127,2]
[419840215,1775411440491,-150.0,0.00015127,2]
[419840216,1775411440501,-150.0,0.00015129,2]
[419840217,1775411440510,-11910.1577215,0.00015133,2]
[419840218,1775411440519,-150.0,0.00015138,2]
[419840219,1775411440529,-150.0,0.00015138,2]
[419840220,1775411440539,-150.0,0.00015147,2]
[419840221,1775411440549,-150.0,0.00015156,2]
[419840222,1775411440561,-150.0,0.00015164,2]
[419840223,1775411440575,-4706.0,0.00015175,2]
[419840224,1775411440587,-150.0,0.00015176,2]
[419840225,1775411440601,-500.0,0.00015182,2]
[419840226,1775411440612,-294.53,0.00015182,2]
[419840227,1775411440622,-150.0,0.00015182,2]
[419840228,1775411440633,-2000.0,0.00015185,2]
[419840229,1775411440643,-2000.0,0.00015185,2]
[419840230,1775411440656,-2000.0,0.00015185,2]
[419840231,1775411440680,-2000.0,0.00015185,2]
[419840232,1775411440691,-2000.0,0.00015185,2]
[419840233,1775411440702,-2000.0,0.00015185,2]
[419840235,1775411440712,-2000.0,0.00015185,2]
[419840237,1775411440723,-2000.0,0.00015185,2]
[419840238,1775411440733,-2000.0,0.00015185,2]
[419840240,1775411440744,-2148.0,0.00015185,2]
[419840242,1775411440755,-150.0,0.00015185,2]
[419840244,1775411440765,-500.0,0.00015198,2]
[419840247,1775411440781,-578.20924308,0.00015199,2]
[419840249,1775411440792,-695.39793187,0.00015199,2]
[419840251,1775411440803,-201.93286099,0.00015199,2]
[419840252,1775411440816,-200.0,0.00015199,2]
[419840254,1775411440827,-500.0,0.00015199,2]
[419840256,1775411440837,-500.0,0.00015199,2]
[419840258,1775411440852,-1377.42282659,0.00015199,2]
[419840260,1775411440863,-500.0,0.00015199,2]
[419840262,1775411440874,-500.0,0.00015199,2]
[419840264,1775411440884,-500.0,0.00015199,2]
[419840266,1775411440894,-500.0,0.00015199,2]
[419840268,1775411440903,-500.0,0.00015199,2]
[419840270,1775411440913,-500.0,0.00015199,2]
[419840272,1775411440922,-500.0,0.00015199,2]
[419840273,1775411440932,-500.0,0.00015199,2]
[419840274,1775411440942,-500.0,0.00015199,2]
[419840275,1775411440951,-500.0,0.00015199,2]
[419840276,1775411440960,-500.0,0.00015199,2]
[419840277,1775411440969,-1000.0,0.00015199,2]
[419840278,1775411440981,-233.76893115,0.00015199,2]
[419840279,1775411440990,-3000.0,0.00015199,2]
[419840280,1775411440999,-339.62894545,0.00015199,2]
[419840281,1775411441008,-3000.0,0.00015199,2]
[419840282,1775411441018,-743.50770149,0.00015199,2]
[419840283,1775411441027,-3000.0,0.00015199,2]
[419840284,1775411441036,-3000.0,0.00015199,2]
[419840285,1775411441046,-1240.61840911,0.00015199,2]
[419840286,1775411441058,-174.61919141,0.00015199,2]
[419840287,1775411441067,-151.0,0.00015199,2]
[419840288,1775411441077,-1166.05065886,0.00015199,2]
[419840289,1775411441087,-668.65185757,0.00015199,2]
[419840290,1775411441096,-170.0,0.00015199,2]
[419840291,1775411441106,-170.0,0.00015199,2]
[419840292,1775411441115,-170.0,0.00015199,2]
[419840293,1775411441124,-170.0,0.00015199,2]
[419840294,1775411441134,-170.0,0.00015199,2]
[419840295,1775411441144,-170.0,0.00015199,2]
[419840296,1775411441153,-170.0,0.00015199,2]
[419840297,1775411441163,-170.0,0.00015199,2]
[419840298,1775411441172,-170.0,0.00015199,2]
[419840299,1775411441181,-170.0,0.00015199,2]
[419840300,1775411441191,-170.0,0.00015199,2]
[419840301,1775411441200,-170.0,0.00015199,2]
[419840302,1775411441210,-279.9045709,0.00015199,2]
[419840303,1775411441221,-150.0,0.000152,2]
[419840304,1775411441232,-150.0,0.000152,2]
[419840305,1775411441241,-150.0,0.000152,2]
[419840306,1775411441251,-150.0,0.000152,2]
[419840307,1775411441261,-150.0,0.000152,2]
[419840308,1775411441271,-150.0,0.000152,2]
[419840309,1775411441284,-150.0,0.000152,2]
[419840310,1775411441293,-150.0,0.000152,2]
[419840311,1775411441305,-8477.48344941,0.000152,2]
[419840312,1775411441315,-10000.0,0.00015205,2]
[419840313,1775411441324,-500.0,0.00015213,2]
[419840314,1775411441334,-294.53,0.00015213,2]
[419840315,1775411441343,-150.0,0.00015215,2]
[419840316,1775411441352,-150.0,0.00015218,2]
[419840317,1775411441362,-150.0,0.00015224,2]
[419840318,1775411441371,-500.0,0.00015228,2]
[419840319,1775411441382,-500.0,0.00015228,2]
[419840320,1775411441393,-500.0,0.00015228,2]
[419840321,1775411441402,-500.0,0.00015228,2]
[419840322,1775411441412,-500.0,0.00015228,2]
[419840323,1775411441421,-150.0,0.00015236,2]
[419840324,1775411441431,-150.0,0.00015244,2]
[419840325,1775411441441,-150.0,0.00015253,2]
[419840326,1775411441450,-500.0,0.00015254,2]
[419840327,1775411441459,-500.0,0.00015254,2]
[419840328,1775411441469,-500.0,0.00015254,2]
[419840329,1775411441479,-571.3,0.00015254,2]
[419840330,1775411441488,-500.0,0.00015254,2]
[419840331,1775411441498,-500.0,0.00015254,2]
[419840332,1775411441507,-643.16,0.00015254,2]
[419840333,1775411441516,-173.65,0.00015254,2]
[419840334,1775411441526,-500.0,0.00015254,2]
[419840335,1775411441535,-151.0,0.00015254,2]
[419840336,1775411441544,-150.0,0.00015262,2]
[419840337,1775411441555,-150.0,0.00015262,2]
[419840338,1775411441567,-150.0,0.00015271,2]
[419840339,1775411441577,-150.0,0.00015273,2]
[419840340,1775411441586,-150.0,0.00015273,2]
[419840341,1775411441596,-350.0,0.00015283,2]
[419840342,1775411441606,-4706.0,0.00015287,2]
[419840343,1775411441615,-150.0,0.00015289,2]
[419840344,1775411441625,-4706.0,0.00015292,2]
[419840345,1775411441633,-150.0,0.00015302,2]
[419840346,1775411441643,-150.0,0.00015307,2]
[419840347,1775411441654,-500.0,0.00015309,2]
[419840348,1775411441663,-500.0,0.00015309,2]
[419840349,1775411441672,-481.06713155,0.00015309,2]
[419840350,1775411441682,-500.0,0.00015309,2]
[419840351,1775411441692,-151.0,0.00015309,2]
[419840352,1775411441702,-150.99,0.0001531,2]
[419840353,1775411441711,-7124.75,0.0001531,2]
[419840354,1775411441720,-150.0,0.00015314,2]
[419840355,1775411441729,-5000.0,0.00015319,2]
[419840356,1775411441738,-150.0,0.00015321,2]
[419840357,1775411441747,-150.0,0.00015323,2]
[419840358,1775411441756,-150.0,0.00015323,2]
[419840359,1775411441766,-150.0,0.00015324,2]
[419840360,1775411441775,-300.0,0.00015328,2]
[419840361,1775411441784,-300.0,0.00015328,2]
[419840362,1775411441794,-300.0,0.00015328,2]
[419840363,1775411441805,-300.0,0.00015328,2]
[419840364,1775411441814,-300.0,0.00015328,2]
[419840365,1775411441823,-300.0,0.00015328,2]
[419840366,1775411441833,-300.0,0.00015328,2]
[419840367,1775411441842,-300.0,0.00015328,2]
[419840368,1775411441851,-440.0,0.00015328,2]
[419840369,1775411441860,-150.0,0.00015331,2]
[419840370,1775411441870,-150.0,0.00015333,2]
[419840371,1775411441880,-504.0,0.00015341,3]
[419840372,1775411441889,-150.0,0.00015342,2]
[419840373,1775411441898,-8422.99193755,0.00015346,2]
[419840374,1775411441907,-150.0,0.0001536,2]
[419840375,1775411441916,-150.0,0.0001536,2]
[419840376,1775411441926,-4706.0,0.00015361,2]
[419840377,1775411441935,-500.0,0.00015364,2]
[419840378,1775411441944,-151.0,0.00015364,2]
[419840379,1775411441954,-150.0,0.0001537,2]
[419840380,1775411441964,-150.0,0.00015378,2]
[419840381,1775411441974,-150.0,0.00015385,2]
[419840382,1775411441985,-150.0,0.00015385,2]
[419840383,1775411441995,-11910.1577215,0.00015389,2]
[419840384,1775411442004,-150.0,0.00015389,2]
[419840385,1775411442013,-150.0,0.00015396,2]
[419840386,1775411442023,-166.66,0.00015396,2]
[419840387,1775411442033,-478.15,0.00015398,2]
[419840388,1775411442043,-477.12,0.00015398,2]
[419840389,1775411442054,-150.0,0.000154,2]
[419840390,1775411442063,-150.0,0.00015413,2]
[419840391,1775411442072,-150.0,0.00015418,2]
[419840392,1775411442081,-150.0,0.00015418,2]
[419840393,1775411442090,-500.0,0.00015419,2]
[419840394,1775411442100,-151.0,0.00015419,2]
[419840395,1775411442110,-150.0,0.00015429,2]
[419840396,1775411442120,-150.0,0.00015431,2]
[419840397,1775411442130,-8477.48344941,0.00015433,2]
[419840398,1775411442140,-150.0,0.00015446,2]
[419840399,1775411442150,-150.0,0.00015446,2]
[419840400,1775411442160,-150.0,0.00015447,2]
[419840401,1775411442170,-150.0,0.00015449,2]
[419840402,1775411442179,-150.0,0.00015467,2]
[419840403,1775411442189,-150.0,0.00015467,2]
[419840404,1775411442198,-150.0,0.00015467,2]
[419840405,1775411442207,-150.0,0.00015467,2]
[419840406,1775411442217,-2979.4,0.00015471,2]
[419840407,1775411442227,-6902.01,0.00015471,2]
[419840408,1775411442236,-28985.77,0.00015471,2]
[419840409,1775411442246,-3062.66,0.00015471,2]
[419840410,1775411442256,-500.0,0.00015474,2]
[419840411,1775411442267,-151.0,0.00015474,2]
[419840412,1775411442279,-150.0,0.00015476,2]
[419840413,1775411442290,-150.0,0.00015484,2]
[419840414,1775411442301,-500.0,0.0001549,2]
[419840415,1775411442311,-500.0,0.0001549,2]
[419840416,1775411442320,-562.90745143,0.0001549,2]
[419840417,1775411442331,-150.0,0.00015502,2]
[419840418,1775411442340,-150.0,0.00015505,2]
[419840419,1775411442351,-4000.0,0.00015507,2]
[419840420,1775411442360,-150.0,0.00015508,2]
[419840421,1775411442370,-150.0,0.00015508,2]
[419840422,1775411442380,-150.0,0.00015515,2]
[419840423,1775411442390,-150.0,0.0001552,2]
[419840424,1775411442398,-5098.0,0.00015523,2]
[419840425,1775411442408,-4706.0,0.00015528,2]
[419840426,1775411442417,-161.93319121,0.00015529,2]
[419840427,1775411442426,-500.0,0.00015529,2]
[419840428,1775411442435,-151.0,0.00015529,2]
[419840430,1775411442444,-150.0,0.00015535,2]
[419840434,1775411442454,-150.0,0.00015538,2]
[419840437,1775411442463,-500.0,0.00015538,2]
[419840440,1775411442472,-500.0,0.00015538,2]
[419840443,1775411442481,-500.0,0.00015538,2]
[419840445,1775411442491,-500.0,0.00015538,2]
[419840447,1775411442501,-500.0,0.00015538,2]
[419840449,1775411442510,-500.0,0.00015538,2]
[419840451,1775411442520,-500.0,0.00015538,2]
[419840453,1775411442529,-500.0,0.00015538,2]
[419840454,1775411442538,-500.0,0.00015538,2]
[419840455,1775411442547,-500.0,0.00015538,2]
[419840456,1775411442558,-500.0,0.00015538,2]
[419840457,1775411442567,-500.0,0.00015538,2]
[419840458,1775411442576,-500.0,0.00015538,2]
[419840459,1775411442586,-500.0,0.00015538,2]
[419840460,1775411442595,-500.0,0.00015538,2]
[419840461,1775411442605,-500.0,0.00015538,2]
[419840462,1775411442615,-500.0,0.00015538,2]
[419840463,1775411442626,-500.0,0.00015538,2]
[419840464,1775411442635,-500.0,0.00015538,2]
[419840465,1775411442644,-500.0,0.00015538,2]
[419840466,1775411442654,-500.0,0.00015538,2]
[419840467,1775411442665,-500.0,0.00015538,2]
[419840468,1775411442675,-500.0,0.00015538,2]
[419840469,1775411442684,-500.0,0.00015538,2]
[419840470,1775411442693,-139355.48928242,0.00015539,2]
[419840471,1775411442724,-2872.21660765,0.00015539,2]
[419840472,1775411442759,-1466.38808259,0.00015539,2]
[419840498,1775411443331,-8959.61,0.00014853,2]
[419840500,1775411443341,-1356305.90602734,0.00015539,2]
[419840502,1775411443350,-601.82,0.0001554,2]
[419840503,1775411443359,-500.0,0.0001554,2]
[419840504,1775411443369,-500.0,0.0001554,2]
[419840505,1775411443379,-500.0,0.0001554,2]
[419840506,1775411443389,-500.0,0.0001554,2]
[419840507,1775411443398,-500.0,0.0001554,2]
[419840508,1775411443408,-500.0,0.0001554,2]
[419840509,1775411443418,-500.0,0.0001554,2]
[419840510,1775411443427,-150.0,0.00015543,2]
[419840511,1775411443437,-150.0,0.00015556,2]
[419840512,1775411443447,-4706.0,0.00015556,2]
[419840513,1775411443457,-5888.0,0.00015556,2]
[419840514,1775411443466,-150.0,0.00015564,2]
[419840515,1775411443476,-150.0,0.00015564,2]
[419840516,1775411443488,-150.0,0.00015569,2]
[419840517,1775411443498,-150.0,0.00015569,2]
[419840518,1775411443508,-500.0,0.00015573,2]
[419840519,1775411443518,-500.0,0.00015573,2]
[419840520,1775411443528,-500.0,0.00015573,2]
[419840521,1775411443538,-500.0,0.00015573,2]
[419840522,1775411443548,-500.0,0.00015573,2]
[419840523,1775411443558,-500.0,0.00015573,2]
[419840524,1775411443569,-500.0,0.00015573,2]
[419840525,1775411443579,-500.0,0.00015573,2]
[419840526,1775411443589,-500.0,0.00015573,2]
[419840527,1775411443599,-347.07116371,0.00015573,2]
[419840528,1775411443609,-500.0,0.00015573,2]
[419840529,1775411443619,-500.0,0.00015573,2]
[419840530,1775411443629,-500.0,0.00015573,2]
[419840531,1775411443638,-500.0,0.00015573,2]
[419840532,1775411443648,-500.0,0.00015573,2]
[419840533,1775411443658,-150.0,0.00015573,2]
[419840534,1775411443668,-500.0,0.00015584,2]
[419840535,1775411443677,-151.0,0.00015584,2]
[419840536,1775411443687,-150.0,0.00015591,2]
[419840537,1775411443697,-150.0,0.00015593,2]
[419840538,1775411443708,-168.6203,0.000156,2]
[419840539,1775411443718,-150.0,0.000156,2]
[419840540,1775411443727,-150.0,0.000156,2]
[419840541,1775411443737,-150.0,0.000156,2]
[419840542,1775411443747,-3200.0,0.000156,2]
[419840543,1775411443757,-150.0,0.00015609,2]
[419840544,1775411443767,-150.0,0.00015612,2]
[419840545,1775411443777,-150.0,0.00015622,2]
[419840546,1775411443788,-150.0,0.00015627,2]
[419840547,1775411443798,-150.0,0.00015631,2]
[419840548,1775411443809,-150.0,0.00015631,2]
[419840549,1775411443820,-350.0,0.00015639,3]
[419840550,1775411443829,-500.0,0.00015639,2]
[419840551,1775411443839,-500.0,0.00015639,2]
[419840552,1775411443849,-500.0,0.00015639,2]
[419840553,1775411443860,-500.0,0.00015639,2]
[419840554,1775411443869,-634.65,0.00015639,2]
[419840555,1775411443879,-500.0,0.00015639,2]
[419840556,1775411443889,-500.0,0.00015639,2]
[419840557,1775411443899,-500.0,0.00015639,2]
[419840558,1775411443908,-500.0,0.00015639,2]
[419840559,1775411443918,-500.0,0.00015639,2]
[419840560,1775411443928,-500.0,0.00015639,2]
[419840561,1775411443938,-500.0,0.00015639,2]
[419840562,1775411443948,-500.0,0.00015639,2]
[419840563,1775411443958,-500.0,0.00015639,2]
[419840564,1775411443968,-500.0,0.00015639,2]
[419840565,1775411443978,-500.0,0.00015639,2]
[419840566,1775411443988,-500.0,0.00015639,2]
[419840567,1775411443998,-500.0,0.00015639,2]
[419840568,1775411444008,-500.0,0.00015639,2]
[419840569,1775411444018,-539.72,0.00015639,2]
[419840570,1775411444028,-500.0,0.00015639,2]
[419840571,1775411444038,-500.0,0.00015639,2]
[419840572,1775411444047,-500.0,0.00015639,2]
[419840573,1775411444362,-155.0,0.00015639,2]
[419840574,1775411444371,-500.0,0.00015639,2]
[419840575,1775411444381,-500.0,0.00015639,2]
[419840576,1775411444390,-500.0,0.00015639,2]
[419840577,1775411444400,-500.0,0.00015639,2]
[419840578,1775411444410,-500.0,0.00015639,2]
[419840579,1775411444419,-500.0,0.00015639,2]
[419840580,1775411444428,-500.0,0.00015639,2]
[419840581,1775411444438,-500.0,0.00015639,2]
[419840582,1775411444447,-500.0,0.00015639,2]
[419840584,1775411444457,-500.0,0.00015639,2]
[419840585,1775411444466,-500.0,0.00015639,2]
[419840586,1775411444475,-500.0,0.00015639,2]
[419840587,1775411444484,-500.0,0.00015639,2]
[419840588,1775411444494,-151.0,0.00015639,2]
[419840590,1775411444504,-11910.1577215,0.00015644,2]
[419840591,1775411444513,-150.0,0.00015644,2]
[419840592,1775411444522,-150.0,0.00015651,2]
[419840594,1775411444532,-150.0,0.00015657,2]
[419840595,1775411444542,-150.0,0.00015661,2]
[419840596,1775411444552,-150.0,0.00015662,2]
[419840598,1775411444562,-8477.48344941,0.00015667,2]
[419840599,1775411444572,-1478.75367566,0.0001568,2]
[419840600,1775411444581,-150.0,0.0001568,2]
[419840602,1775411444591,-150.0,0.0001568,2]
[419840603,1775411444600,-1986.27,0.00015684,2]
[419840604,1775411444609,-1600.0,0.00015686,2]
[419840606,1775411444619,-150.0,0.00015692,2]
[419840607,1775411444629,-150.0,0.00015692,2]
[419840608,1775411444639,-500.0,0.00015694,2]
[419840609,1775411444648,-151.0,0.00015694,2]
[419840610,1775411444658,-150.0,0.00015698,2]
[419840611,1775411444668,-607.0457332,0.000157,2]
[419840612,1775411444677,-150.0,0.00015709,2]
[419840613,1775411444687,-150.0,0.00015709,2]
[419840614,1775411444696,-150.0,0.00015716,2]
[419840615,1775411444705,-500.0,0.00015721,2]
[419840616,1775411444714,-500.0,0.00015721,2]
[419840617,1775411444723,-150.0,0.00015733,2]
[419840618,1775411444733,-150.0,0.00015733,2]
[419840619,1775411444742,-150.0,0.00015738,2]
[419840620,1775411444751,-500.0,0.00015746,2]
[419840621,1775411444761,-500.0,0.00015746,2]
[419840622,1775411444770,-209.40437684,0.00015747,2]
[419840623,1775411444780,-200.0,0.00015747,2]
[419840624,1775411444790,-1428.38747117,0.00015747,2]
[419840625,1775411444800,-771.01748645,0.00015747,2]
[419840626,1775411444811,-181.08010149,0.00015747,2]
[419840627,1775411444820,-693.3919763,0.00015747,2]
[419840628,1775411444830,-305.84152636,0.00015747,2]
[419840630,1775411444839,-500.0,0.00015749,2]
[419840631,1775411444849,-151.0,0.00015749,2]
[419840632,1775411444858,-150.0,0.00015751,2]
[419840634,1775411444868,-262.0,0.00015753,2]
[419840635,1775411444877,-150.0,0.00015754,2]
[419840636,1775411444887,-150.0,0.00015754,2]
[419840637,1775411444895,-500.0,0.00015756,2]
[419840638,1775411444906,-150.0,0.00015758,2]
[419840639,1775411444915,-150.0,0.00015767,2]
[419840640,1775411444924,-150.0,0.00015769,2]
[419840641,1775411444933,-150.0,0.00015771,2]
[419840642,1775411444942,-150.0,0.00015787,2]
[419840643,1775411444952,-150.0,0.00015796,2]
[419840644,1775411444961,-150.0,0.000158,2]
[419840645,1775411444970,-500.0,0.00015804,2]
[419840646,1775411444980,-151.0,0.00015804,2]
[419840647,1775411444990,-150.0,0.00015804,2]
[419840648,1775411444999,-150.0,0.00015806,2]
[419840649,1775411445010,-150.0,0.00015808,2]
[419840650,1775411445019,-150.0,0.00015815,2]
[419840651,1775411445028,-150.0,0.00015815,2]
[419840652,1775411445037,-150.0,0.00015822,2]
[419840653,1775411445047,-150.0,0.00015825,2]
[419840654,1775411445057,-497.0,0.00015831,5]
[419840655,1775411445067,-4180.387,0.00015832,2]
[419840656,1775411445076,-212.942,0.00015832,2]
[419840657,1775411445086,-523.0,0.00015833,5]
[419840658,1775411445095,-350.0,0.00015836,2]
[419840659,1775411445104,-350.0,0.00015837,2]
[419840660,1775411445114,-500.0,0.00015839,2]
[419840661,1775411445123,-500.0,0.00015839,2]
[419840662,1775411445133,-500.0,0.00015839,2]
[419840663,1775411445142,-500.0,0.00015839,2]
[419840664,1775411445152,-500.0,0.00015839,2]
[419840665,1775411445161,-150.0,0.0001584,2]
[419840666,1775411445171,-2000.0,0.0001584,2]
[419840667,1775411445180,-2000.0,0.0001584,2]
[419840668,1775411445189,-2000.0,0.0001584,2]
[419840669,1775411445199,-150.0,0.00015855,2]
[419840670,1775411445208,-150.0,0.00015855,2]
[419840671,1775411445217,-150.0,0.00015858,2]
[419840672,1775411445226,-500.0,0.00015861,2]
[419840673,1775411445236,-500.0,0.00015861,2]
[419840674,1775411445245,-150.0,0.00015867,2]
[419840675,1775411445254,-500.0,0.0001587,2]
[419840676,1775411445264,-500.0,0.0001587,2]
[419840677,1775411445274,-500.0,0.00015871,2]
[419840678,1775411445283,-500.0,0.00015871,2]
[419840679,1775411445292,-500.0,0.00015872,2]
[419840680,1775411445301,-500.0,0.00015872,2]
[419840681,1775411445311,-200.0,0.00015872,2]
[419840682,1775411445320,-500.0,0.00015873,2]
[419840683,1775411445332,-500.0,0.00015873,2]
[419840684,1775411445343,-500.0,0.00015873,2]
[419840685,1775411445354,-150.0,0.00015876,2]
[419840686,1775411445363,-150.0,0.00015877,2]
[419840687,1775411445373,-150.0,0.00015877,2]
[419840688,1775411445383,-150.0,0.00015884,2]
[419840690,1775411445393,-150.0,0.00015886,2]
[419840691,1775411445403,-500.0,0.0001589,2]
[419840692,1775411445412,-500.0,0.0001589,2]
[419840693,1775411445424,-150.0,0.00015893,2]
[419840694,1775411445435,-4000.0,0.00015895,2]
[419840695,1775411445445,-500.0,0.00015899,2]
[419840696,1775411445454,-500.0,0.00015899,2]
[419840697,1775411445463,-500.0,0.00015899,2]
[419840698,1775411445474,-10000.0,0.000159,2]
[419840699,1775411445487,-25000.0,0.000159,3]
[419840700,1775411445496,-8477.48344941,0.000159,2]
[419840701,1775411445506,-11910.1577215,0.000159,2]
[419840702,1775411445515,-2315.0,0.000159,5]
[419840703,1775411445524,-150.0,0.00015903,2]
[419840704,1775411445535,-518.71,0.00015904,2]
[419840705,1775411445544,-587.0,0.00015906,2]
[419840706,1775411445554,-150.0,0.00015911,2]
[419840707,1775411445563,-150.0,0.00015913,2]
[419840708,1775411445573,-150.0,0.00015929,2]
[419840709,1775411445583,-150.0,0.00015938,2]
[419840710,1775411445592,-150.0,0.00015938,2]
[419840711,1775411445602,-150.0,0.00015942,2]
[419840712,1775411445611,-500.0,0.00015944,2]
[419840713,1775411445621,-250.0,0.00015945,2]
[419840714,1775411445630,-250.0,0.00015945,2]
[419840715,1775411445640,-150.0,0.00015947,2]
[419840716,1775411445650,-150.0,0.00015952,2]
[419840717,1775411445659,-150.0,0.00015964,2]
[419840718,1775411445669,-150.0,0.00015971,2]
[419840719,1775411445678,-500.0,0.00015973,2]
[419840720,1775411445687,-500.0,0.00015973,2]
[419840721,1775411445697,-500.0,0.00015973,2]
[419840722,1775411445706,-500.0,0.00015973,2]
[419840723,1775411445715,-500.0,0.00015973,2]
[419840724,1775411445724,-500.0,0.00015973,2]
[419840725,1775411445734,-500.0,0.00015973,2]
[419840726,1775411445743,-500.0,0.00015973,2]
[419840727,1775411445753,-500.0,0.00015973,2]
[419840728,1775411445762,-500.0,0.00015973,2]
[419840729,1775411445772,-500.0,0.00015973,2]
[419840730,1775411445781,-500.0,0.00015973,2]
[419840731,1775411445791,-500.0,0.00015973,2]
[419840732,1775411445801,-500.0,0.00015973,2]
[419840733,1775411445811,-500.0,0.00015973,2]
[419840734,1775411445821,-500.0,0.00015973,2]
[419840735,1775411445831,-500.0,0.00015973,2]
[419840736,1775411445841,-500.0,0.00015976,2]
[419840737,1775411445851,-150.0,0.00015982,2]
[419840738,1775411445861,-204.65564765,0.00015984,2]
[419840739,1775411445871,-410.22645736,0.00015984,2]
[419840740,1775411445880,-194.38201156,0.00015984,2]
[419840741,1775411445890,-160.52529364,0.00015984,2]
[419840742,1775411445900,-190.11144522,0.00015984,2]
[419840743,1775411445910,-155.62208558,0.00015984,2]
[419840744,1775411445919,-288.3780509,0.00015984,2]
[419840745,1775411445928,-161.93319121,0.0001599,2]
[419840746,1775411445938,-161.93319121,0.0001599,2]
[419840747,1775411445948,-500.0,0.00015996,2]
[419840748,1775411445957,-150.0,0.00015996,2]
[419840749,1775411445967,-500.0,0.00015996,2]
[419840750,1775411445976,-150.0,0.00015996,2]
[419840751,1775411445986,-5098.0,0.00015997,2]
[419840752,1775411445995,-249.779244,0.00015997,2]
[419840753,1775411446004,-500.0,0.00015997,2]
[419840754,1775411446014,-500.0,0.00015997,2]
[419840755,1775411446024,-500.0,0.00015998,2]
[419840756,1775411446033,-275.02950636,0.00015998,2]
[419840757,1775411446043,-500.0,0.00015998,2]
[419840758,1775411446052,-666.0,0.00015999,2]
[419840759,1775411446062,-666.0,0.00015999,2]
[419840760,1775411446072,-666.0,0.00015999,2]
[419840761,1775411446082,-666.0,0.00015999,2]
[419840762,1775411446092,-593.98,0.00015999,2]
[419840763,1775411446102,-14853.0461819,0.00015999,2]
[419840764,1775411446112,-500.0,0.00015999,2]
[419840765,1775411446123,-500.0,0.00015999,2]
[419840766,1775411446133,-500.0,0.00015999,2]
[419840767,1775411446143,-500.0,0.00015999,2]
[419840768,1775411446153,-500.0,0.00015999,2]
[419840769,1775411446164,-500.0,0.00015999,2]
[419840770,1775411446175,-500.0,0.00015999,2]
[419840771,1775411446185,-500.0,0.00015999,2]
[419840772,1775411446196,-173.78284134,0.00015999,2]
[419840773,1775411446205,-30928.5044609,0.00015999,2]
[419840774,1775411446215,-24297.3413889,0.00015999,2]
[419840775,1775411446225,-500.0,0.00015999,2]
[419840777,1775411446234,-500.0,0.00015999,2]
[419840779,1775411446244,-500.0,0.00015999,2]
[419840780,1775411446255,-500.0,0.00015999,2]
[419840781,1775411446265,-500.0,0.00015999,2]
[419840782,1775411446276,-500.0,0.00015999,2]
[419840783,1775411446286,-500.0,0.00015999,2]
[419840784,1775411446297,-500.0,0.00015999,2]
[419840785,1775411446307,-324.43648397,0.00015999,2]